fUST/lending_fUST_20240516
["ID","MTS","AMOUNT","RATE_DAILY","PERIOD"]
[327154115,1715861448462,-500.0,0.00016974,2]
[327154116,1715861448471,-151.0,0.00016974,2]
[327154117,1715861448481,-151.0,0.00016974,2]
[327154118,1715861448490,-151.0,0.00016974,2]
[327154119,1715861448499,-151.0,0.00016974,2]
[327154120,1715861448509,-151.0,0.00016974,2]
[327154121,1715861448519,-151.0,0.00016974,2]
[327154122,1715861448531,-151.0,0.00016974,2]
[327154123,1715861448541,-266.765128,0.00016974,2]
[327154124,1715861448552,-151.0,0.00016974,2]
[327154125,1715861448561,-151.0,0.00016974,2]
[327154126,1715861448570,-151.0,0.00016974,2]
[327154127,1715861448579,-500.0,0.00016974,2]
[327154128,1715861448590,-151.0,0.00016974,2]
[327154129,1715861448599,-1292.38,0.00016974,2]
[327154130,1715861448609,-151.0,0.00016974,2]
[327154131,1715861448618,-151.0,0.00016974,2]
[327154132,1715861448627,-151.0,0.00016974,2]
[327154133,1715861448637,-151.0,0.00016974,2]
[327154134,1715861448649,-151.0,0.00016974,2]
[327154135,1715861448659,-175.91965,0.00016974,2]
[327154136,1715861448670,-581.77,0.00016974,2]
[327154137,1715861448679,-500.0,0.00016974,2]
[327154138,1715861448690,-500.0,0.00016974,2]
[327154139,1715861448699,-500.0,0.00016974,2]
[327154140,1715861448709,-151.0,0.00016974,2]
[327154141,1715861448720,-151.0,0.00016974,2]
[327154142,1715861448735,-500.0,0.00016974,2]
[327154143,1715861448745,-3408.5,0.00016974,2]
[327154144,1715861448754,-746.53,0.00016974,2]
[327154145,1715861448763,-500.0,0.00016974,2]
[327154146,1715861448774,-500.0,0.00016974,2]
[327154147,1715861448783,-500.0,0.00016974,2]
[327154148,1715861448794,-171.309233,0.00016974,2]
[327154149,1715861448802,-171.309233,0.00016974,2]
[327154150,1715861448813,-171.309233,0.00016974,2]
[327154151,1715861448822,-171.309233,0.00016974,2]
[327154152,1715861448831,-171.309233,0.00016974,2]
[327154153,1715861448842,-171.309233,0.00016974,2]
[327154154,1715861448851,-171.309233,0.00016974,2]
[327154155,1715861448860,-171.309233,0.00016974,2]
[327154156,1715861448869,-171.309233,0.00016974,2]
[327154157,1715861448878,-171.309233,0.00016974,2]
[327154158,1715861448888,-171.309233,0.00016974,2]
[327154159,1715861448897,-171.309233,0.00016974,2]
[327154160,1715861448906,-171.309233,0.00016974,2]
[327154161,1715861448915,-471.02575382,0.00016974,2]
[327154162,1715861448925,-171.309233,0.00016974,2]
[327154163,1715861448936,-171.309233,0.00016974,2]
[327154164,1715861448946,-1331.43,0.00016974,2]
[327154165,1715861448955,-171.309233,0.00016974,2]
[327154166,1715861448965,-171.309233,0.00016974,2]
[327154167,1715861448974,-171.309233,0.00016974,2]
[327154168,1715861448985,-171.309233,0.00016974,2]
[327154169,1715861448994,-171.30923204,0.00016974,2]
[327154170,1715861449005,-151.0,0.00016974,2]
[327154171,1715861449014,-151.459684,0.00016974,2]
[327154172,1715861449023,-500.0,0.00016974,2]
[327154173,1715861449033,-151.169538,0.00016974,2]
[327154174,1715861449042,-3252.63,0.00016974,2]
[327154175,1715861449052,-500.0,0.00016974,2]
[327154176,1715861449061,-700.38,0.00016974,2]
[327154177,1715861449071,-151.0,0.00016974,2]
[327154178,1715861449081,-500.0,0.00016974,2]
[327154179,1715861449090,-151.0,0.00016974,2]
[327154180,1715861449099,-500.0,0.00016974,2]
[327154181,1715861449109,-1122.69,0.00016974,2]
[327154182,1715861449118,-151.0,0.00016974,2]
[327154183,1715861449128,-157.815467,0.00016974,2]
[327154184,1715861449139,-661.49,0.00016974,2]
[327154185,1715861449149,-1022.35,0.00016974,2]
[327154186,1715861449158,-500.0,0.00016974,2]
[327154187,1715861449168,-759.06,0.00016974,2]
[327154188,1715861449179,-837.14,0.00016974,2]
[327154189,1715861449189,-151.0,0.00016974,2]
[327154190,1715861449198,-151.0,0.00016974,2]
[327154191,1715861449209,-151.0,0.00016974,2]
[327154192,1715861449218,-151.0,0.00016974,2]
[327154193,1715861449228,-151.0,0.00016974,2]
[327154194,1715861449237,-500.0,0.00016974,2]
[327154195,1715861449246,-151.0,0.00016974,2]
[327154196,1715861449255,-151.0,0.00016974,2]
[327154197,1715861449264,-500.0,0.00016974,2]
[327154198,1715861449273,-151.0,0.00016974,2]
[327154199,1715861449282,-151.0,0.00016974,2]
[327154200,1715861449291,-151.0,0.00016974,2]
[327154201,1715861449302,-151.0,0.00016974,2]
[327154202,1715861449311,-151.0,0.00016974,2]
[327154203,1715861449320,-151.0,0.00016974,2]
[327154204,1715861449330,-151.0,0.00016974,2]
[327154205,1715861449339,-5055.89,0.00016974,2]
[327154206,1715861449347,-151.0,0.00016974,2]
[327154207,1715861449357,-151.0,0.00016974,2]
[327154208,1715861449366,-151.0,0.00016974,2]
[327154209,1715861449376,-151.0,0.00016974,2]
[327154210,1715861449385,-297.894796,0.00016974,2]
[327154211,1715861449394,-500.0,0.00016974,2]
[327154212,1715861449403,-640.16,0.00016974,2]
[327154213,1715861449412,-500.0,0.00016974,2]
[327154214,1715861449422,-12161.87,0.00016974,2]
[327154215,1715861449431,-86444.51,0.00016974,2]
[327154216,1715861449439,-1180.81,0.00016974,2]
[327154217,1715861449449,-151.0,0.00016974,2]
[327154218,1715861449458,-158.339831,0.00016974,2]
[327154219,1715861449467,-500.0,0.00016974,2]
[327154220,1715861449476,-1193.087286,0.00016974,2]
[327154221,1715861449486,-1193.087286,0.00016974,2]
[327154222,1715861449495,-500.0,0.00016974,2]
[327154223,1715861449504,-1193.087286,0.00016974,2]
[327154224,1715861449513,-1193.087286,0.00016974,2]
[327154225,1715861449522,-1193.087286,0.00016974,2]
[327154226,1715861449531,-42.65331448,0.00016974,2]
[327154227,1715861530062,154.79876161,9.999e-05,2]
[327154251,1715861744037,179.435059,0.00015945,2]
[327154253,1715861762652,21321.2958124,0.00015945,2]
[327154256,1715861975188,154.79876161,9.999e-05,2]
[327154276,1715862233118,179.435059,0.00015904,2]
[327154277,1715862274938,5000.0,0.00023,30]
[327154286,1715862449156,-154.79876161,0.00016577,2]
[327154287,1715862449176,-2187.73854691,0.00016578,2]
[327154288,1715862449195,-153.46815223,0.00016811,2]
[327154289,1715862449215,-59383.50211818,0.00016965,2]
[327154290,1715862449235,-500.0,0.00016966,2]
[327154291,1715862449255,-500.0,0.00016966,2]
[327154292,1715862449275,-500.0,0.00016966,2]
[327154293,1715862449295,-500.0,0.00016966,2]
[327154294,1715862449314,-636.78,0.00016966,2]
[327154295,1715862449336,-1278.33124027,0.00016966,2]
[327154296,1715862450115,-7841.72875973,0.00016966,2]
[327154297,1715862450147,-1450.23320844,0.00016966,2]
[327154299,1715862540655,1026.46,0.00026699,120]
[327154346,1715862635887,-154.79876161,0.00016865,2]
[327154348,1715862635896,-955.51212408,0.00016866,2]
[327154350,1715862635906,-500.0,0.00016964,2]
[327154352,1715862635917,-1992.4,0.00016964,2]
[327154354,1715862635927,-500.0,0.00016964,2]
[327154356,1715862635936,-1665.59,0.00016964,2]
[327154358,1715862635946,-610.25,0.00016964,2]
[327154360,1715862635956,-8740.06,0.00016964,2]
[327154362,1715862635965,-1903.1,0.00016964,2]
[327154364,1715862635975,-8775.90161062,0.00016965,2]
[327154366,1715862635984,-1407.35,0.00016966,2]
[327154368,1715862635995,-988.33,0.00016966,2]
[327154370,1715862636005,-1593.84,0.00016966,2]
[327154372,1715862636015,-1447.28,0.00016966,2]
[327154374,1715862636025,-2739.07,0.00016966,2]
[327154376,1715862636036,-747.24,0.00016966,2]
[327154378,1715862636046,-867.75,0.00016966,2]
[327154380,1715862636057,-500.0,0.00016966,2]
[327154382,1715862636070,-500.0,0.00016966,2]
[327154384,1715862636081,-712.47,0.00016966,2]
[327154386,1715862636091,-500.0,0.00016966,2]
[327154388,1715862636107,-1238.05,0.00016966,2]
[327154390,1715862636119,-500.0,0.00016966,2]
[327154392,1715862636129,-500.0,0.00016966,2]
[327154394,1715862636139,-15433.9,0.00016966,2]
[327154396,1715862636150,-537.28,0.00016966,2]
[327154398,1715862636160,-5650.61,0.00016966,2]
[327154400,1715862636169,-500.0,0.00016966,2]
[327154402,1715862636180,-7104.37,0.00016966,2]
[327154404,1715862636190,-500.0,0.00016966,2]
[327154406,1715862636201,-500.0,0.00016966,2]
[327154408,1715862636212,-978.06,0.00016966,2]
[327154411,1715862636224,-1593.84,0.00016967,2]
[327154412,1715862636234,-500.0,0.00016967,2]
[327154415,1715862636245,-1773.31,0.00016967,2]
[327154417,1715862636255,-500.0,0.00016967,2]
[327154418,1715862636264,-859.09,0.00016967,2]
[327154420,1715862636274,-807.36,0.00016967,2]
[327154422,1715862636283,-9479.80356271,0.00016968,3]
[327154424,1715862636292,-498.89990997,0.00016968,2]
[327154426,1715862636302,-1789.6,0.00016968,2]
[327154428,1715862636312,-500.0,0.00016968,2]
[327154430,1715862636322,-586.46,0.00016968,2]
[327154432,1715862636332,-610.61,0.00016968,2]
[327154434,1715862636342,-500.0,0.00016968,2]
[327154436,1715862636354,-1805.12,0.00016968,2]
[327154438,1715862636366,-500.0,0.00016968,2]
[327154441,1715862636375,-650.96,0.00016968,2]
[327154442,1715862636385,-1013.97,0.00016968,2]
[327154445,1715862636396,-762.61,0.00016968,2]
[327154447,1715862636406,-500.0,0.00016968,2]
[327154448,1715862636415,-500.0,0.00016968,2]
[327154450,1715862636424,-1241.66,0.00016968,2]
[327154453,1715862636434,-500.0,0.00016968,2]
[327154454,1715862636443,-500.0,0.00016968,2]
[327154456,1715862636452,-500.0,0.00016968,2]
[327154458,1715862636462,-2622.54,0.00016968,2]
[327154460,1715862636471,-948.91,0.00016968,2]
[327154474,1715862636644,-500.0,0.00016968,2]
[327154475,1715862636654,-1540.79,0.00016968,2]
[327154476,1715862636664,-4904.7,0.00016968,2]
[327154477,1715862636674,-2825.36,0.00016968,2]
[327154478,1715862636683,-500.0,0.00016968,2]
[327154479,1715862636693,-1606.54,0.00016968,2]
[327154480,1715862636702,-500.0,0.00016968,2]
[327154481,1715862636711,-717.56,0.00016968,2]
[327154482,1715862636720,-500.17,0.00016968,2]
[327154483,1715862636730,-2050.62,0.00016968,2]
[327154484,1715862636741,-687.94,0.00016968,2]
[327154485,1715862636751,-1981.91,0.00016968,2]
[327154486,1715862636761,-500.0,0.00016968,2]
[327154487,1715862636771,-500.0,0.00016968,2]
[327154488,1715862636781,-1348.21,0.00016968,2]
[327154489,1715862636791,-500.0,0.00016968,2]
[327154490,1715862636801,-789.63,0.00016968,2]
[327154491,1715862636812,-629.85,0.00016968,2]
[327154492,1715862636825,-613.39,0.00016968,2]
[327154494,1715862636836,-500.0,0.00016968,2]
[327154495,1715862636846,-500.0,0.00016968,2]
[327154496,1715862636863,-725.28,0.00016968,2]
[327154498,1715862636872,-900.96,0.00016968,2]
[327154500,1715862636882,-1205.56,0.00016968,2]
[327154502,1715862636891,-500.0,0.00016968,2]
[327154504,1715862636901,-500.0,0.00016968,2]
[327154506,1715862636911,-596.95,0.00016968,2]
[327154508,1715862636921,-500.0,0.00016968,2]
[327154510,1715862636931,-500.0,0.00016968,2]
[327154512,1715862636941,-1080.95,0.00016968,2]
[327154514,1715862636951,-694.71194931,0.00016968,2]
[327155316,1715862647062,-947.15,0.00016964,2]
[327155318,1715862647076,-1348.71,0.00016964,2]
[327155320,1715862647085,-500.0,0.00016967,2]
[327155322,1715862647094,-3316.49805069,0.00016968,2]
[327155324,1715862647105,-1593.84,0.00016968,2]
[327155326,1715862647117,-500.0,0.00016968,2]
[327155328,1715862647126,-610.99,0.00016968,2]
[327155330,1715862647136,-3127.76,0.00016968,2]
[327155332,1715862647146,-500.0,0.00016968,2]
[327155334,1715862647157,-6942.44,0.00016968,2]
[327155336,1715862647167,-500.0,0.00016968,2]
[327155338,1715862647182,-500.0,0.00016968,2]
[327155340,1715862647191,-500.0,0.00016968,2]
[327155342,1715862647201,-748.33,0.00016968,2]
[327155344,1715862647210,-5932.26,0.00016968,2]
[327155345,1715862647220,-4263.17,0.00016968,2]
[327155347,1715862647229,-636.85,0.00016968,2]
[327155349,1715862647239,-500.0,0.00016968,2]
[327155351,1715862647247,-500.0,0.00016968,2]
[327155353,1715862647257,-500.0,0.00016968,2]
[327155355,1715862647266,-726.31,0.00016968,2]
[327155357,1715862647276,-1238.53,0.00016968,2]
[327155359,1715862647285,-500.0,0.00016968,2]
[327155361,1715862647296,-500.0,0.00016968,2]
[327155363,1715862647306,-3266.48,0.00016968,2]
[327155365,1715862647316,-1032.28,0.00016968,2]
[327155367,1715862647326,-1132.75,0.00016968,2]
[327155370,1715862647336,-3117.11,0.00016968,2]
[327155371,1715862647345,-500.0,0.00016968,2]
[327155374,1715862647355,-500.0,0.00016968,2]
[327155375,1715862647364,-1490.92,0.00016968,2]
[327155377,1715862647374,-4845.22,0.00016968,2]
[327155379,1715862647383,-1884.41,0.00016968,2]
[327155381,1715862647393,-819.25,0.00016968,2]
[327155383,1715862647402,-500.0,0.00016968,2]
[327155385,1715862647412,-39145.05930465,0.00016968,2]
[327155391,1715862647457,-43697.59069535,0.00016968,2]
[327155393,1715862647467,-500.0,0.00016968,2]
[327155395,1715862647476,-3569.24,0.00016968,2]
[327155397,1715862647486,-1023.79,0.00016968,2]
[327155399,1715862647496,-500.0,0.00016968,2]
[327155401,1715862647505,-557.53,0.00016968,2]
[327155403,1715862647515,-500.0,0.00016968,2]
[327155405,1715862647524,-1118.3,0.00016968,2]
[327155407,1715862647534,-276.8188046,0.00016968,2]
[327155409,1715862647543,-500.0,0.00016968,2]
[327155411,1715862647553,-500.0,0.00016968,2]
[327155413,1715862647563,-500.0,0.00016968,2]
[327155415,1715862647572,-500.0,0.00016968,2]
[327155417,1715862647582,-500.0,0.00016968,2]
[327155419,1715862647591,-500.0,0.00016968,2]
[327155421,1715862647600,-503.05071071,0.00016968,2]
[327155423,1715862647609,-3916.57,0.00016968,2]
[327155425,1715862647619,-3385.82,0.00016968,2]
[327155427,1715862647629,-506.53725978,0.00016968,2]
[327155429,1715862647639,-500.0,0.00016968,2]
[327155431,1715862647651,-500.0,0.00016968,2]
[327155433,1715862647660,-1362.38,0.00016968,2]
[327155434,1715862647670,-513.01214525,0.00016969,2]
[327155437,1715862647691,-277.35870196,0.00016969,2]
[327155438,1715862647704,-500.0,0.00016969,2]
[327155440,1715862647713,-1593.84,0.00016969,2]
[327155442,1715862647723,-1422.68958061,0.00016969,2]
[327156104,1715862727788,261.02399172,9.999e-05,2]
[327156106,1715862742747,1630.75899689,9.999e-05,2]
[327156107,1715862756260,1683.16697261,0.00015,2]
[327156108,1715862761986,522.43468076,9.999e-05,2]
[327156109,1715862764239,154.79876161,9.999e-05,2]
[327156110,1715862772830,154.79876161,9.999e-05,2]
[327156111,1715862798510,154.79876161,9.999e-05,2]
[327156112,1715862798540,1188.91648145,0.000138,2]
[327156113,1715862800740,492.79282332,9.999e-05,2]
[327156114,1715862801785,1304.49725425,9.999e-05,2]
[327156115,1715862802432,154.79876161,9.999e-05,2]
[327156116,1715862809316,528.27553309,9.999e-05,2]
[327156117,1715862818398,154.79876161,9.999e-05,2]
[327156118,1715862821406,154.79876161,9.999e-05,2]
[327156119,1715862822775,410.3337331,9.999e-05,2]
[327156126,1715862826462,154.79876161,9.999e-05,2]
[327156127,1715862829371,154.79876161,9.999e-05,2]
[327156134,1715863176766,154.79876161,9.999e-05,2]
[327156136,1715863246125,492.79282332,9.999e-05,2]
[327156137,1715863246496,226.0,0.00015792,2]
[327156147,1715863639254,-1884.87016128,0.00016034,2]
[327156148,1715863639275,-26199.69640132,0.00016035,2]
[327156149,1715863639295,-12043.03284368,0.00016035,2]
[327156151,1715863684940,154.79876161,9.999e-05,2]
[327156157,1715863771136,-8737.86274285,0.00016028,2]
[327156225,1715863832284,-20239.26546952,0.00016027,2]
[327156226,1715863832294,-10505.64077383,0.00016028,2]
[327156229,1715863832303,-154.79876161,0.00016033,2]
[327156231,1715863832313,-1649.81401406,0.00016034,2]
[327156233,1715863832322,-3734.65143941,0.00016034,2]
[327156235,1715863832331,-226.0,0.0001615,2]
[327156238,1715863832340,-620.27919193,0.00016287,2]
[327156240,1715863832349,-943.16459608,0.00016338,2]
[327156242,1715863832357,-270.09906497,0.00016436,2]
[327156244,1715863832366,-168.99092306,0.00016438,2]
[327156246,1715863832378,-331.00907694,0.00016438,2]
[327156248,1715863832387,-13.04578245,0.00016438,2]
[327156698,1715863838564,-486.95421755,0.00016438,2]
[327156700,1715863838573,-500.0,0.00016438,2]
[327156701,1715863838583,-823.36,0.00016438,2]
[327156703,1715863838592,-1726.2,0.00016438,2]
[327156705,1715863838602,-500.0,0.00016438,2]
[327156707,1715863838611,-500.0,0.00016438,2]
[327156709,1715863838620,-500.0,0.00016438,2]
[327156711,1715863838629,-2074.2,0.00016438,2]
[327156713,1715863838639,-981.08,0.00016438,2]
[327156714,1715863838648,-1398.52,0.00016438,2]
[327156716,1715863838658,-1742.87,0.00016438,2]
[327156718,1715863838668,-500.0,0.00016438,2]
[327156720,1715863838677,-898.63,0.00016438,2]
[327156722,1715863838687,-500.0,0.00016438,2]
[327156724,1715863838697,-1707.47,0.00016438,2]
[327156726,1715863838706,-2821.19,0.00016438,2]
[327156743,1715863838883,-500.0,0.00016438,2]
[327156745,1715863838892,-802.7,0.00016438,2]
[327156747,1715863838902,-500.0,0.00016438,2]
[327156749,1715863838912,-1547.67,0.00016438,2]
[327156751,1715863838921,-500.0,0.00016438,2]
[327156753,1715863838930,-538.1006364,0.00016438,2]
[327156755,1715863838939,-500.0,0.00016438,2]
[327156756,1715863838949,-500.0,0.00016438,2]
[327156758,1715863838958,-603.0,0.00016438,2]
[327156760,1715863838967,-500.0,0.00016438,2]
[327156762,1715863838977,-887.1,0.00016438,2]
[327156764,1715863838986,-557.41,0.00016438,2]
[327156766,1715863838995,-758.6,0.00016438,2]
[327156768,1715863839006,-500.0,0.00016438,2]
[327156770,1715863839016,-500.0,0.00016438,2]
[327156771,1715863839025,-500.0,0.00016438,2]
[327156773,1715863839034,-612.36,0.00016438,2]
[327156775,1715863839043,-500.0,0.00016438,2]
[327156777,1715863839052,-500.0,0.00016438,2]
[327156779,1715863839062,-383.78514551,0.00016438,2]
[327156810,1715863839398,-116.21485449,0.00016438,2]
[327156812,1715863839408,-576.48,0.00016438,2]
[327156814,1715863839418,-500.0,0.00016438,2]
[327156816,1715863839428,-2122.58,0.00016438,2]
[327156818,1715863839438,-500.0,0.00016438,2]
[327156820,1715863839450,-916.34,0.00016438,2]
[327156822,1715863839459,-362.27244273,0.00016438,2]
[327156829,1715863839545,188.4,0.00015759,2]
[327157080,1715863842097,-188.4,0.0001612,2]
[327157082,1715863842107,-3432.79345591,0.00016437,2]
[327157084,1715863842116,-137.72755727,0.00016438,2]
[327157087,1715863842126,-682.78,0.00016438,2]
[327157089,1715863842136,-500.0,0.00016438,2]
[327157090,1715863842146,-500.0,0.00016438,2]
[327157092,1715863842156,-500.0,0.00016438,2]
[327157094,1715863842165,-583.29295271,0.00016438,2]
[327157096,1715863842175,-500.0,0.00016438,2]
[327157098,1715863842184,-500.0,0.00016438,2]
[327157100,1715863842193,-500.0,0.00016438,2]
[327157102,1715863842203,-500.0,0.00016438,2]
[327157105,1715863842212,-698.57,0.00016438,2]
[327157107,1715863842222,-500.0,0.00016438,2]
[327157109,1715863842231,-1272.43,0.00016438,2]
[327157111,1715863842241,-500.0,0.00016438,2]
[327157113,1715863842250,-15648.49,0.00016438,2]
[327157115,1715863842260,-500.0,0.00016438,2]
[327157117,1715863842270,-500.0,0.00016438,2]
[327157119,1715863842280,-500.0,0.00016438,2]
[327157121,1715863842289,-2035.88,0.00016438,2]
[327157123,1715863842299,-395.26572016,0.00016438,2]
[327157125,1715863842309,-550.65,0.00016438,2]
[327157127,1715863842318,-500.0,0.00016438,2]
[327157129,1715863842327,-500.0,0.00016438,2]
[327157131,1715863842337,-5723.25,0.00016438,2]
[327157133,1715863842346,-500.0,0.00016438,2]
[327157135,1715863842355,-946.70993497,0.00016438,2]
[327157138,1715863842380,-528.18127841,0.00016438,2]
[327157140,1715863842392,-5705.19878662,0.00016438,2]
[327157142,1715863842401,-504.4,0.00016438,2]
[327157145,1715863842412,-500.0,0.00016438,2]
[327157148,1715863842422,-500.0,0.00016438,2]
[327157151,1715863842433,-500.0,0.00016438,2]
[327157154,1715863842450,-500.0,0.00016438,2]
[327157156,1715863842459,-231.80156489,0.00016438,2]
[327157159,1715863842469,-1699.43,0.00016438,2]
[327157161,1715863842482,-602.2888841,0.00016438,2]
[327157163,1715863842492,-500.0,0.00016438,2]
[327157164,1715863842501,-273.49694,0.00016438,2]
[327157166,1715863842513,-500.0,0.00016438,2]
[327157168,1715863842524,-825.5,0.00016438,2]
[327157170,1715863842534,-500.0,0.00016438,2]
[327157172,1715863842544,-672.09,0.00016438,2]
[327157174,1715863842553,-1073.71,0.00016438,2]
[327157176,1715863842563,-500.0,0.00016438,2]
[327157178,1715863842573,-500.0,0.00016438,2]
[327157180,1715863842583,-500.0,0.00016438,2]
[327157182,1715863842593,-500.0,0.00016438,2]
[327157184,1715863842603,-9658.87,0.00016438,2]
[327157186,1715863842613,-913.41,0.00016438,2]
[327157188,1715863842623,-627.71,0.00016438,2]
[327157190,1715863842632,-500.0,0.00016438,2]
[327157192,1715863842642,-500.0,0.00016438,2]
[327157194,1715863842651,-188.4,0.0001648,2]
[327157196,1715863842661,-4220.67206101,0.0001657,2]
[327157198,1715863842670,-398.53713203,0.00016574,2]
[327157200,1715863842680,-500.0,0.00016574,2]
[327157202,1715863842689,-1822.11,0.00016575,2]
[327157204,1715863842698,-562.03,0.00016575,2]
[327157206,1715863842707,-500.0,0.00016575,2]
[327157208,1715863842717,-500.0,0.00016575,2]
[327157210,1715863842726,-971.72,0.00016575,2]
[327157213,1715863842736,-500.0,0.00016575,2]
[327157217,1715863842745,-500.0,0.00016575,2]
[327157221,1715863842755,-1189.93,0.00016575,2]
[327157224,1715863842765,-500.0,0.00016575,2]
[327157227,1715863842775,-500.0,0.00016575,2]
[327157231,1715863842784,-2513.26,0.00016575,2]
[327157233,1715863842792,-761.01,0.00016575,2]
[327157236,1715863842801,-4700.34,0.00016575,2]
[327157239,1715863842810,-1539.6,0.00016575,2]
[327157242,1715863842820,-500.0,0.00016575,2]
[327157246,1715863842829,-500.0,0.00016575,2]
[327157253,1715863842839,-500.0,0.00016575,2]
[327157258,1715863842848,-500.0,0.00016575,2]
[327157262,1715863842858,-500.0,0.00016575,2]
[327157267,1715863842867,-587.83,0.00016575,2]
[327157273,1715863842876,-863.42,0.00016575,2]
[327157278,1715863842885,-500.0,0.00016575,2]
[327157282,1715863842895,-500.0,0.00016575,2]
[327157285,1715863842904,-3303.48418171,0.00016575,2]
[327157339,1715863843542,-978.06,0.00016438,2]
[327157341,1715863843551,-540.58581829,0.00016575,2]
[327157343,1715863843560,-500.0,0.00016575,2]
[327157345,1715863843570,-4085.54,0.00016575,2]
[327157347,1715863843579,-500.0,0.00016575,2]
[327157349,1715863843588,-727.63,0.00016575,2]
[327157351,1715863843597,-1085.56,0.00016575,2]
[327157353,1715863843606,-1805.9,0.00016575,2]
[327157355,1715863843615,-500.0,0.00016575,2]
[327157357,1715863843625,-3420.52,0.00016575,2]
[327157359,1715863843634,-500.0,0.00016575,2]
[327157361,1715863843643,-500.0,0.00016575,2]
[327157363,1715863843652,-500.0,0.00016575,2]
[327157365,1715863843662,-153.0,0.000166,2]
[327157367,1715863843672,-582.0718,0.000166,2]
[327157369,1715863843681,-153.0,0.000166,2]
[327157371,1715863843690,-281.2339902,0.000166,2]
[327157373,1715863843698,-408.5227382,0.000166,2]
[327157374,1715863843708,-500.0,0.00016712,2]
[327157376,1715863843717,-583.00170341,0.00016712,2]
[327157379,1715863843727,-823.36,0.00016712,2]
[327157380,1715863843736,-1726.2,0.00016712,2]
[327157382,1715863843745,-500.0,0.00016712,2]
[327157384,1715863843754,-2074.2,0.00016712,2]
[327157386,1715863843765,-981.08,0.00016712,2]
[327157388,1715863843774,-1398.52,0.00016712,2]
[327157390,1715863843783,-1742.87,0.00016712,2]
[327157392,1715863843793,-500.0,0.00016712,2]
[327157394,1715863843802,-898.63,0.00016712,2]
[327157396,1715863843811,-500.0,0.00016712,2]
[327157398,1715863843820,-2821.19,0.00016712,2]
[327157400,1715863843829,-500.0,0.00016712,2]
[327157402,1715863843839,-802.7,0.00016712,2]
[327157404,1715863843847,-359.68,0.00016712,2]
[327157406,1715863843857,-1547.67,0.00016712,2]
[327157408,1715863843866,-500.0,0.00016712,2]
[327157410,1715863843875,-603.0,0.00016712,2]
[327157412,1715863843884,-887.1,0.00016712,2]
[327157414,1715863843893,-557.41,0.00016712,2]
[327157416,1715863843902,-758.6,0.00016712,2]
[327157418,1715863843911,-268.40072513,0.00016712,2]
[327157674,1715863847375,-308.0836265,0.00016436,2]
[327157675,1715863847387,-8189.44694285,0.00016436,2]
[327157676,1715863847396,-6914.76173663,0.00016436,2]
[327157685,1715863910784,384.28467909,9.999e-05,2]
[327157686,1715863950388,942.22196607,0.00015,2]
[327157698,1715864309288,831.36893846,0.00016,2]
[327157704,1715864805102,-3061.48679003,0.00016313,2]
[327157705,1715864805128,-5676.90582824,0.00016314,2]
[327157706,1715864850089,-10575.44133925,0.00016435,2]
[327157707,1715864850110,-3590.8790372,0.00016436,2]
[327157708,1715864850130,-154.79876161,0.00016436,2]
[327157709,1715864850150,-2633.04320867,0.00016436,2]
[327157710,1715864850171,-508.13523249,0.00016436,2]